bitfinex-derivatives/quotes_BTCF0:USTF0_20251030
["timestamp","ask_amount","ask_price","bid_price","bid_amount"]
[1761826851216,1.03659242,109450.0,109440.0,0.02650894]
[1761826851415,1.03659242,109450.0,109440.0,0.05906675]
[1761826851617,1.03659242,109450.0,109440.0,0.11678675]
[1761826851816,0.653995,109450.0,109440.0,0.09227781]
[1761826852904,0.633995,109450.0,109440.0,0.09227781]
[1761826853112,0.273195,109450.0,109440.0,0.09503781]
[1761826853315,6.5e-05,109450.0,109440.0,0.90750037]
[1761826853614,6.5e-05,109450.0,109440.0,1.17984634]
[1761826853812,0.07491,109460.0,109450.0,0.04391]
[1761826854004,0.07491,109460.0,109450.0,0.5126517]
[1761826854209,0.07491,109460.0,109450.0,0.57783804]
[1761826854411,0.07491,109460.0,109450.0,0.48646634]
[1761826854605,0.07491,109460.0,109450.0,0.48370634]
[1761826854606,0.09683,109460.0,109450.0,0.48370634]
[1761826854818,0.14843327,109460.0,109450.0,0.72290634]
[1761826855009,0.14843327,109460.0,109450.0,0.65772]
[1761826855209,0.12843327,109460.0,109450.0,0.65872]
[1761826855718,0.08495327,109460.0,109450.0,0.41952]
[1761826855915,0.07495327,109460.0,109450.0,0.57883794]
[1761826856115,0.07495327,109460.0,109450.0,0.57607794]
[1761826856420,0.07495327,109460.0,109450.0,0.92543536]
[1761826857105,0.07495327,109460.0,109450.0,1.52543536]
[1761826857305,0.07495327,109460.0,109450.0,1.08746634]
[1761826857516,0.07495327,109460.0,109450.0,1.08470634]
[1761826858018,0.07495327,109460.0,109450.0,1.17607784]
[1761826858214,0.07495327,109460.0,109450.0,0.5136515]
[1761826858427,0.07495327,109460.0,109450.0,0.86024892]
[1761826858719,0.72476,109500.0,109490.0,0.04391]
[1761826858920,0.78476,109500.0,109490.0,0.07672078]
[1761826859312,0.80476,109500.0,109490.0,0.07672078]
[1761826859513,0.80476,109500.0,109490.0,0.101312]
[1761826860017,0.80776,109500.0,109490.0,0.101312]
[1761826860214,1.30243742,109500.0,109480.0,0.08202695]
[1761826860427,0.04348,109490.0,109480.0,0.07672078]
[1761826860728,0.11348,109490.0,109480.0,0.07672078]
[1761826860916,0.11348,109490.0,109480.0,0.05486078]
[1761826861115,0.11348,109490.0,109480.0,0.07672078]
[1761826861319,0.09348,109490.0,109480.0,0.07672078]
[1761826861634,0.11348,109490.0,109480.0,0.03281078]
[1761826861827,0.28348,109490.0,109480.0,0.03281078]
[1761826862318,0.63007742,109490.0,109480.0,0.0573849]
[1761826862516,0.97087742,109490.0,109480.0,0.02457412]
[1761826862718,0.05628,109480.0,109470.0,0.02457412]
[1761826862926,0.88367742,109480.0,109470.0,0.02457412]
[1761826863335,1.07367742,109480.0,109470.0,0.02457412]
[1761826863933,1.07467742,109480.0,109470.0,0.02457412]
[1761826864632,1.17467742,109480.0,109470.0,0.02457412]
[1761826864927,1.07467742,109480.0,109470.0,0.02457412]
[1761826866633,1.04467742,109480.0,109470.0,0.02457412]
[1761826866932,0.69808,109480.0,109470.0,0.02457412]
[1761826867634,1.04467742,109480.0,109470.0,0.02457412]
[1761826868635,0.69808,109480.0,109470.0,0.06872412]
[1761826868830,0.31728,109480.0,109470.0,0.06872412]
[1761826869032,0.33728,109480.0,109470.0,0.06872412]
[1761826869333,0.30448,109480.0,109470.0,0.06872412]
[1761826869533,0.001,109480.0,109470.0,0.07696078]
[1761826869935,0.04564,109480.0,109470.0,0.12617695]
[1761826870134,0.05464,109480.0,109470.0,0.12717695]
[1761826870435,0.40544,109490.0,109480.0,0.04476]
[1761826870624,0.48544,109490.0,109480.0,0.06931978]
[1761826870828,0.46544,109490.0,109480.0,0.06931978]
[1761826872035,0.10464,109490.0,109480.0,0.06931978]
[1761826872736,0.10564,109490.0,109480.0,0.06931978]
[1761826874433,0.83303742,109490.0,109480.0,0.02455978]
[1761826874641,0.05704,109480.0,109470.0,0.02455978]
[1761826874832,0.80443742,109480.0,109470.0,0.02455978]
[1761826875737,0.80443742,109480.0,109470.0,0.02555978]
[1761826875935,1.52443742,109480.0,109470.0,0.02555978]
[1761826876143,1.59719742,109480.0,109470.0,0.001]
[1761826876635,0.05704,109460.0,109450.0,0.02455978]
[1761826876834,0.64784,109460.0,109450.0,0.02455978]
[1761826877035,0.99443742,109460.0,109450.0,0.02455978]
[1761826877237,1.09443742,109460.0,109450.0,0.02455978]
[1761826878041,1.09443742,109460.0,109450.0,0.002]
[1761826878042,1.36443742,109460.0,109450.0,0.002]
[1761826878340,1.61443742,109460.0,109450.0,0.002]
[1761826878537,0.94784,109460.0,109450.0,0.002]
[1761826878737,0.86784,109460.0,109450.0,0.02655978]
[1761826879438,0.86784,109460.0,109450.0,0.04551]
[1761826879741,0.72784,109460.0,109450.0,0.07006978]
[1761826881841,0.72784,109460.0,109450.0,0.02655978]
[1761826881842,1.05443742,109460.0,109450.0,0.02655978]
[1761826882044,1.87447137,109460.0,109450.0,0.02655978]
[1761826882253,1.87723137,109460.0,109450.0,0.002]
[1761826882544,0.02268,109440.0,109430.0,0.05737056]
[1761826882846,0.04404,109430.0,109420.0,0.02459545]
[1761826883049,0.82143742,109430.0,109420.0,0.02459545]
[1761826883350,0.05704,109420.0,109410.0,0.0329066]
[1761826883537,0.83443742,109420.0,109410.0,0.02468108]
[1761826884041,1.09043742,109420.0,109410.0,9.582e-05]
[1761826884747,1.09143742,109420.0,109410.0,0.00409582]
[1761826884936,0.43484,109420.0,109410.0,0.00409582]
[1761826885147,0.90143742,109420.0,109410.0,0.00409582]
[1761826885449,0.76177835,109420.0,109410.0,0.00409582]
[1761826885845,0.64177835,109420.0,109410.0,0.00409582]
[1761826886145,0.66177835,109420.0,109410.0,0.00409582]
[1761826886350,0.69177835,109420.0,109410.0,0.00409582]
[1761826886651,0.45484,109420.0,109410.0,0.04760582]
[1761826886951,0.43484,109420.0,109410.0,0.07219108]
[1761826887338,0.43484,109420.0,109410.0,0.04760582]
[1761826887541,0.66177835,109420.0,109410.0,0.04760582]
[1761826887742,0.66177835,109420.0,109410.0,0.00409582]
[1761826888048,0.68177835,109420.0,109410.0,0.00409582]
[1761826888948,0.78177835,109420.0,109410.0,0.00409582]
[1761826889356,0.74177835,109420.0,109410.0,0.00409582]
[1761826889653,0.77524,109420.0,109410.0,0.02541582]
[1761826890045,0.04404,109410.0,109400.0,0.02132]
[1761826890238,0.04404,109410.0,109400.0,0.04351]
[1761826890943,0.04404,109410.0,109400.0,0.64627]
[1761826891148,0.73824,109420.0,109410.0,0.04351]
[1761826891354,0.77833582,109420.0,109410.0,0.04351]
[1761826891547,0.98527417,109420.0,109390.0,0.44282695]
[1761826891743,0.02268,109400.0,109390.0,0.41493078]
[1761826891947,0.05704,109400.0,109390.0,0.43712078]
[1761826892447,0.07704,109400.0,109390.0,0.43712078]
[1761826893454,0.02268,109400.0,109390.0,0.43988078]
[1761826893656,0.73933582,109420.0,109410.0,0.04351]
[1761826893851,0.74933582,109420.0,109410.0,0.04351]
[1761826894048,0.04404,109410.0,109400.0,0.07632078]
[1761826894444,0.04404,109410.0,109400.0,0.04351]
[1761826894854,0.05722,109400.0,109390.0,0.43686078]
[1761826895362,0.04365,109400.0,109390.0,0.43686078]
[1761826896153,0.02208,109400.0,109390.0,0.43686078]
[1761826896354,0.04365,109400.0,109390.0,0.43686078]
[1761826896556,0.04465,109410.0,109400.0,0.04325]
[1761826896751,0.02257,109410.0,109400.0,0.04325]
[1761826896956,0.69429582,109420.0,109400.0,0.04636]
[1761826897156,0.001,109400.0,109390.0,0.64379913]
[1761826897461,0.001,109400.0,109390.0,0.64655913]
[1761826897953,0.04465,109410.0,109400.0,0.04325]
[1761826898160,0.001,109410.0,109400.0,0.25329835]
[1761826898458,0.001,109410.0,109400.0,0.64690913]
[1761826898761,0.001,109410.0,109400.0,0.74108253]
[1761826898964,0.001,109410.0,109400.0,0.7902987]
[1761826899171,0.001,109410.0,109400.0,0.75748792]
[1761826899356,9.582e-05,109420.0,109400.0,0.75748792]
[1761826899658,9.582e-05,109420.0,109410.0,0.64364388]
[1761826900054,0.02217582,109420.0,109410.0,0.64364388]
[1761826900261,0.05731582,109420.0,109410.0,0.07590553]
[1761826900457,0.07731582,109420.0,109410.0,0.05380553]
[1761826900655,0.04365,109410.0,109400.0,0.4859217]
[1761826901756,0.04365,109410.0,109400.0,0.43670553]
[1761826902166,0.04365,109410.0,109400.0,0.45326617]
[1761826902765,0.04365,109410.0,109400.0,0.45637617]
[1761826902766,0.02308,109410.0,109400.0,0.45637617]
[1761826902966,0.04465,109410.0,109400.0,0.45326617]
[1761826903567,0.001,109410.0,109400.0,0.45637617]
[1761826903750,0.001,109410.0,109400.0,0.45913617]
[1761826904264,0.04465,109410.0,109400.0,0.45326617]
[1761826904764,0.04465,109410.0,109400.0,0.45637617]
[1761826904958,0.04465,109410.0,109400.0,0.45913617]
[1761826905153,0.04465,109410.0,109400.0,0.40405]
[1761826905357,0.04465,109410.0,109400.0,0.45321465]
[1761826905763,0.04465,109410.0,109400.0,0.45632465]
[1761826905962,0.04465,109410.0,109400.0,0.45321465]
[1761826906168,0.04465,109410.0,109400.0,0.40405]
[1761826906670,0.04465,109410.0,109400.0,0.40716]
[1761826906671,0.02308,109410.0,109400.0,0.40716]
[1761826906872,0.001,109410.0,109400.0,0.75469688]
[1761826907260,0.001,109410.0,109400.0,0.70551175]
[1761826907768,0.001,109410.0,109400.0,0.4985734]
[1761826908271,0.07594,109410.0,109400.0,1.62847175]
[1761826908664,0.07594,109410.0,109400.0,1.69409331]
[1761826908863,0.07594,109410.0,109400.0,1.48715496]
[1761826909070,0.07594,109410.0,109400.0,1.09409331]
[1761826909259,0.07294,109410.0,109400.0,1.2354101]
[1761826909865,0.07294,109410.0,109400.0,0.8215334]
[1761826910067,0.07294,109410.0,109400.0,0.93705835]
[1761826910267,0.07294,109410.0,109400.0,0.93429835]
[1761826910467,0.07294,109410.0,109400.0,0.72736]
[1761826910871,0.07294,109410.0,109400.0,0.93429835]
[1761826911068,0.07294,109410.0,109400.0,0.99993542]
[1761826911276,0.07294,109410.0,109400.0,0.93429835]
[1761826911772,0.07294,109410.0,109400.0,0.93705835]
[1761826912073,0.07294,109410.0,109400.0,0.93429835]
[1761826912774,0.11659,109410.0,109400.0,0.78991886]
[1761826914061,0.11659,109410.0,109400.0,0.72425]
[1761826915271,0.12659,109410.0,109400.0,0.72425]
[1761826916065,0.12659,109410.0,109400.0,0.40405]
[1761826916264,0.12659,109410.0,109400.0,0.04325]
[1761826916469,0.14659,109410.0,109400.0,0.04325]
[1761826916876,0.14659,109410.0,109400.0,0.10891886]
[1761826917168,0.33352835,109410.0,109400.0,0.04927397]
[1761826917365,0.51352835,109410.0,109400.0,0.04927397]
[1761826917868,0.30659,109410.0,109400.0,0.04927397]
[1761826918171,0.51352835,109410.0,109400.0,0.04927397]
[1761826919176,0.87432835,109410.0,109400.0,0.04927397]
[1761826921675,0.04365,109390.0,109380.0,1.56566886]
[1761826921866,0.63147706,109390.0,109380.0,1.5]
[1761826922267,0.42453871,109390.0,109380.0,1.5]
[1761826922477,0.93147706,109390.0,109380.0,1.5]
[1761826922674,0.93147706,109390.0,109380.0,1.53284936]
[1761826922871,0.91147706,109390.0,109380.0,0.03284936]
[1761826923076,1.21147706,109390.0,109380.0,0.03284936]
[1761826923270,1.21147706,109390.0,109360.0,0.3608]
[1761826923271,0.05722,109380.0,109370.0,0.03284936]
[1761826923470,0.40415835,109380.0,109370.0,1.53284936]
[1761826923879,0.14722,109380.0,109370.0,1.53284936]
[1761826924088,0.04365,109380.0,109370.0,1.5]
[1761826924274,0.04373871,109390.0,109380.0,0.04325]
[1761826924471,0.04373871,109390.0,109380.0,0.05594]
[1761826924674,0.04426871,109390.0,109380.0,0.02293]
[1761826924882,0.01384,109380.0,109360.0,0.06566886]
[1761826925180,0.05802,109360.0,109350.0,0.03292142]
[1761826925475,0.66585417,109360.0,109350.0,0.03292142]
[1761826925682,0.64585417,109360.0,109350.0,0.03292142]
[1761826925984,0.43891582,109360.0,109350.0,0.07915142]
[1761826926374,0.43891582,109360.0,109350.0,0.05585142]
[1761826926573,0.43891582,109360.0,109350.0,0.07915142]
[1761826926975,0.05811582,109360.0,109350.0,0.07915142]
[1761826927175,9.582e-05,109360.0,109350.0,0.08191142]
[1761826927387,0.37464,109380.0,109370.0,0.04623]
[1761826927388,0.41882,109380.0,109370.0,0.04623]
[1761826927683,0.04418,109370.0,109360.0,0.07895572]
[1761826927883,0.40498,109370.0,109360.0,0.07895572]
[1761826928188,0.42498,109370.0,109360.0,0.07895572]
[1761826928383,0.05802,109360.0,109350.0,0.39363427]
[1761826928683,0.05802,109360.0,109350.0,0.03283427]
[1761826928684,0.30495835,109360.0,109350.0,0.03283427]
[1761826929085,0.43882,109360.0,109350.0,0.05576427]
[1761826929283,0.45882,109360.0,109350.0,0.00010855]
[1761826929482,0.66575835,109360.0,109350.0,0.00010855]
[1761826929679,1.5834967,109360.0,109350.0,0.00010855]
[1761826929980,1.37931835,109360.0,109350.0,0.00010855]
[1761826930578,1.37655835,109360.0,109350.0,0.00010855]
[1761826931395,0.04418,109330.0,109320.0,0.07895572]
[1761826931683,0.66191835,109330.0,109320.0,1.52293]
[1761826931883,0.45498,109330.0,109320.0,1.5]
[1761826932088,0.66191835,109330.0,109320.0,1.5]
[1761826932584,0.6620269,109330.0,109320.0,1.5]
[1761826932987,0.45508855,109330.0,109320.0,1.5]
[1761826933184,0.6620269,109330.0,109320.0,1.5]
[1761826933382,0.45608855,109330.0,109320.0,1.5]
[1761826934586,0.6630269,109330.0,109320.0,1.5]
[1761826934787,0.43608855,109330.0,109320.0,1.5]
[1761826934984,0.40608855,109330.0,109320.0,1.5]
[1761826935288,0.00110855,109330.0,109320.0,1.86391]
[1761826936083,0.04528855,109330.0,109320.0,1.8608]
[1761826936284,0.2722269,109330.0,109320.0,1.5]
[1761826936687,0.6430269,109330.0,109320.0,1.5]
[1761826936985,0.43608855,109330.0,109320.0,1.5]
[1761826937189,0.6430269,109330.0,109320.0,1.5]
[1761826938995,0.9230269,109330.0,109320.0,1.5]
[1761826939294,0.04406,109310.0,109300.0,0.40545]
[1761826939494,0.04416855,109310.0,109300.0,0.40545]
[1761826939692,0.04416855,109310.0,109300.0,0.41814]
[1761826939887,0.00010855,109310.0,109300.0,2.72783835]
[1761826940190,0.00010855,109310.0,109300.0,2.21933615]
[1761826940391,0.04406,109310.0,109300.0,1.89352572]
[1761826940598,0.69279835,109310.0,109300.0,0.03607043]
[1761826940895,0.69279835,109310.0,109300.0,0.01322043]
[1761826941395,1.61363835,109310.0,109300.0,0.01322043]
[1761826941594,1.90363835,109310.0,109300.0,0.01322043]
[1761826941985,0.43586,109310.0,109300.0,0.01322043]
[1761826942183,0.45586,109310.0,109300.0,0.05787043]
[1761826942383,0.02221,109310.0,109300.0,0.06098043]
[1761826942590,0.41765,109320.0,109310.0,0.04465]
[1761826942789,0.43765,109320.0,109310.0,0.05787043]
[1761826942997,0.41765,109320.0,109310.0,0.05787043]
[1761826943199,0.43765,109320.0,109310.0,0.05787043]
[1761826943793,0.38301,109330.0,109320.0,0.04465]
[1761826943993,0.40486,109330.0,109320.0,0.04465]
[1761826944496,0.3608,109340.0,109330.0,0.04465]
[1761826944892,0.41765,109340.0,109330.0,0.04465]
[1761826945596,0.3608,109340.0,109330.0,0.04465]
[1761826945997,0.3608,109340.0,109330.0,0.25434835]
[1761826946196,0.3608,109340.0,109330.0,0.04741]
[1761826946498,0.3618,109340.0,109330.0,0.04741]
[1761826946695,0.3618,109340.0,109330.0,0.04465]
[1761826947198,0.3618,109340.0,109330.0,0.25434835]
[1761826947405,0.001,109340.0,109330.0,0.17160832]
[1761826947698,0.001,109340.0,109330.0,1.13240832]
[1761826947904,0.001,109340.0,109330.0,0.92847347]
[1761826948093,0.40486,109370.0,109360.0,0.04465]
[1761826948290,0.42486,109370.0,109360.0,0.04465]
[1761826948487,0.43486,109370.0,109340.0,0.72752501]
[1761826948690,0.41765,109360.0,109350.0,0.02285]
[1761826948893,0.44765,109360.0,109350.0,0.02285]
[1761826949101,0.04406,109350.0,109340.0,0.39868501]
[1761826949293,0.81204769,109350.0,109330.0,0.44235247]
[1761826949503,0.05685,109340.0,109330.0,0.43812501]
[1761826951498,0.41765,109360.0,109350.0,0.04465]
[1761826951705,0.3608,109370.0,109360.0,0.04465]
[1761826951706,0.38301,109370.0,109360.0,0.04465]
[1761826951901,0.4187,109380.0,109370.0,0.04465]
[1761826952103,0.4187,109380.0,109370.0,0.0692002]
[1761826952297,0.3608,109380.0,109370.0,0.0692002]
[1761826952710,0.3608,109380.0,109370.0,0.10187521]
[1761826952999,0.04406,109390.0,109380.0,0.04465]
[1761826953300,0.04406,109390.0,109380.0,0.0692002]
[1761826953507,0.40486,109390.0,109380.0,0.0692002]
[1761826954106,0.04406,109390.0,109380.0,0.0692002]
[1761826955001,0.04406,109390.0,109380.0,0.46267521]
[1761826955197,0.04406,109390.0,109380.0,0.0692002]
[1761826955794,0.04906,109390.0,109380.0,0.0692002]
[1761826955999,0.40986,109390.0,109380.0,0.0692002]
[1761826956195,0.79704769,109390.0,109380.0,0.0245502]
[1761826956402,0.05813,109380.0,109370.0,0.0245502]
[1761826956598,0.04461,109370.0,109360.0,0.05722521]
[1761826956803,0.08461,109370.0,109360.0,0.07612501]
[1761826957005,0.06461,109370.0,109360.0,0.06798072]
[1761826957399,0.08461,109370.0,109360.0,0.02453072]
[1761826958504,0.05813,109360.0,109350.0,0.05720573]
[1761826958806,0.41893,109360.0,109350.0,0.02453072]
[1761826959003,0.43893,109360.0,109350.0,0.02453072]
[1761826959208,0.04461,109350.0,109340.0,0.43972573]
[1761826959604,0.04461,109350.0,109340.0,0.40705072]
[1761826959808,0.04461,109350.0,109340.0,0.38533072]
[1761826960010,0.06461,109350.0,109340.0,0.38533072]
[1761826960510,0.06461,109350.0,109340.0,0.3608]
[1761826960709,0.06461,109350.0,109330.0,0.46145573]
[1761826960710,0.05813,109340.0,109330.0,0.46145573]
[1761826961812,0.05813,109340.0,109330.0,0.55292833]
[1761826962012,0.04461,109340.0,109330.0,0.55292833]
[1761826963206,0.04461,109340.0,109330.0,0.52839761]
[1761826963412,0.02158,109340.0,109330.0,0.52839761]
[1761826963607,0.69556,109360.0,109330.0,0.52839761]
[1761826963908,0.04461,109350.0,109340.0,0.4287909]
[1761826964601,0.41893,109360.0,109350.0,0.04345]
[1761826964802,0.41893,109360.0,109350.0,0.06799197]
[1761826965212,0.38238,109370.0,109360.0,0.02172]
[1761826965516,0.40541,109370.0,109360.0,0.04345]
[1761826965916,0.40541,109370.0,109360.0,0.06799197]
[1761826966111,0.40541,109370.0,109360.0,0.04345]
[1761826966316,0.40541,109370.0,109360.0,0.06799197]
[1761826966613,0.04461,109370.0,109360.0,0.06799197]
[1761826967007,0.05461,109370.0,109360.0,0.06799197]
[1761826967208,0.002,109370.0,109360.0,0.17212937]
[1761826967407,0.002,109370.0,109360.0,0.18026241]
[1761826967919,0.41893,109380.0,109370.0,0.04345]
[1761826968112,0.41893,109380.0,109370.0,0.15942615]
[1761826968719,0.41893,109380.0,109370.0,0.06798705]
[1761826970414,0.05813,109380.0,109370.0,0.06798705]
[1761826970620,0.06813,109380.0,109370.0,0.02453705]
[1761826970817,0.06913,109380.0,109370.0,0.02453705]
[1761826971924,0.06913,109380.0,109370.0,0.04625705]
[1761826972121,0.06913,109380.0,109370.0,0.07893206]
[1761826972320,0.08913,109380.0,109370.0,0.07893206]
[1761826972514,0.08913,109380.0,109370.0,0.02453705]
[1761826972818,0.79711769,109380.0,109370.0,0.02453705]
[1761826973022,0.77711769,109380.0,109370.0,0.02453705]
[1761826973211,0.79711769,109380.0,109370.0,0.02453705]
[1761826973411,0.04461,109370.0,109360.0,0.05721206]
[1761826973728,0.06461,109370.0,109360.0,0.05721206]
[1761826974432,0.08461,109370.0,109360.0,0.05721206]
[1761826975321,0.82259769,109370.0,109360.0,0.03267501]
[1761826975522,1.08259769,109370.0,109360.0,0.02460237]
[1761826975729,0.05813,109360.0,109350.0,0.02460237]
[1761826975929,0.90611769,109360.0,109350.0,0.02460237]
[1761826976130,0.55893,109360.0,109350.0,0.02460237]
[1761826977136,0.90611769,109360.0,109350.0,0.02460237]
[1761826977546,0.53893,109360.0,109350.0,0.02460237]
[1761826977739,0.55893,109360.0,109350.0,0.02460237]
[1761826978242,0.53893,109360.0,109350.0,0.02460237]
[1761826978443,0.55893,109360.0,109350.0,0.02460237]
[1761826979043,0.90611769,109360.0,109350.0,0.02460237]
[1761826980851,1.12611769,109360.0,109350.0,0.02460237]
[1761826981446,1.00611769,109360.0,109350.0,0.02460237]
[1761826981645,0.90611769,109360.0,109350.0,0.02460237]
[1761826981841,0.53893,109360.0,109350.0,0.06805237]
[1761826982048,0.55893,109360.0,109350.0,0.06805237]
[1761826982347,0.55893,109360.0,109350.0,0.04632237]
[1761826982549,0.93611769,109360.0,109350.0,0.02460237]
[1761826982754,0.90611769,109360.0,109350.0,0.02460237]
[1761826983447,0.88611769,109360.0,109350.0,0.02460237]
[1761826983645,0.88611769,109360.0,109350.0,0.06805237]
[1761826983846,0.53893,109360.0,109350.0,0.06805237]
[1761826985150,0.55893,109360.0,109350.0,0.06805237]
[1761826985452,0.53893,109360.0,109350.0,0.06805237]
[1761826986446,0.41893,109360.0,109350.0,0.07612501]
[1761826989052,0.41893,109360.0,109350.0,0.03267501]
[1761826989260,1.00611769,109360.0,109350.0,0.0573009]
[1761826989457,1.12611769,109360.0,109350.0,0.02462589]
[1761826989864,0.03588,109340.0,109330.0,0.08155247]
[1761826990156,0.04523,109330.0,109320.0,0.03267501]
[1761826990367,0.77108769,109330.0,109310.0,0.44235247]
[1761826990656,0.05898,109320.0,109310.0,0.44235247]
[1761826990957,0.09898,109320.0,109310.0,0.39347501]
[1761826991348,0.09898,109320.0,109310.0,0.03267501]
[1761826992052,0.07898,109320.0,109310.0,0.03267501]
[1761826992253,0.09998,109320.0,109310.0,0.03267501]
[1761826992455,0.04523,109310.0,109300.0,0.02753672]
[1761826992647,0.04523,109290.0,109280.0,0.04887746]
[1761826992848,0.04523,109270.0,109260.0,0.45480523]
[1761826993049,0.04523,109270.0,109260.0,0.40592777]
[1761826993255,0.04523,109270.0,109260.0,0.41862777]
[1761826993454,0.04523,109270.0,109260.0,0.40592777]
[1761826993846,0.06523,109270.0,109260.0,0.40592777]
[1761826994047,1.11629769,109270.0,109260.0,7.777e-05]
[1761826994356,0.74911,109270.0,109260.0,7.777e-05]
[1761826994750,0.76911,109270.0,109260.0,7.777e-05]
[1761826994951,0.84911,109270.0,109260.0,7.777e-05]
[1761826995253,1.53629769,109270.0,109260.0,7.777e-05]
[1761826995752,1.53729769,109270.0,109260.0,7.777e-05]
[1761826997057,0.04292,109260.0,109250.0,0.02120592]
[1761826997261,1.21424769,109260.0,109250.0,0.02120592]
[1761826997560,1.21700769,109260.0,109250.0,0.02120592]
[1761826998146,1.31808485,109260.0,109250.0,0.02120592]
[1761826999050,1.31532485,109260.0,109250.0,0.02120592]
[1761827000162,0.04292,109250.0,109240.0,1.5]
[1761827000360,0.04292,109250.0,109220.0,0.05821]
[1761827000361,0.04292,109230.0,109220.0,0.05821]
[1761827000657,0.40372,109240.0,109230.0,0.04524]
[1761827000858,0.76668,109240.0,109230.0,0.04524]
[1761827001056,0.76675777,109240.0,109230.0,0.04524]
[1761827001256,0.75323777,109240.0,109230.0,0.04524]
[1761827001464,0.04292,109230.0,109220.0,1.51297]
[1761827002259,0.43010769,109230.0,109220.0,1.5]
[1761827002456,0.06299777,109230.0,109220.0,1.51297]
[1761827002858,0.04299777,109230.0,109220.0,1.51297]
[1761827004073,0.38191,109250.0,109240.0,0.05821]
[1761827004369,0.40372,109260.0,109250.0,0.04524]
[1761827004565,0.75652,109260.0,109250.0,0.04524]
[1761827004763,0.77652,109260.0,109250.0,0.05855715]
[1761827004967,1.13704769,109260.0,109250.0,0.01331715]
[1761827005258,0.78986,109260.0,109250.0,0.05855715]
[1761827005453,0.75652,109260.0,109250.0,0.05855715]
[1761827005650,0.77652,109260.0,109250.0,0.05855715]
[1761827005854,0.78986,109260.0,109250.0,0.05855715]
[1761827006062,1.13704769,109260.0,109250.0,0.01331715]
[1761827006759,0.46706,109260.0,109250.0,0.05855715]
[1761827006964,0.39576,109260.0,109250.0,0.05855715]
[1761827007263,0.07392,109260.0,109250.0,0.05855715]
[1761827007763,0.07392,109260.0,109250.0,0.15009815]
[1761827007964,0.04392,109260.0,109250.0,0.05855715]
[1761827008361,0.001,109260.0,109250.0,0.36035301]
[1761827008568,0.001,109260.0,109250.0,0.71839301]
[1761827008756,0.001,109260.0,109250.0,0.70507586]
[1761827009158,0.001,109260.0,109250.0,0.4975811]
[1761827010360,0.001,109260.0,109250.0,0.70783586]
[1761827010568,0.93389476,109280.0,109270.0,0.04524]
[1761827010765,1.03389476,109280.0,109270.0,0.04524]
[1761827011168,1.03389476,109280.0,109260.0,0.05821]
[1761827011169,0.04292,109270.0,109260.0,0.05821]
[1761827011470,0.27041476,109270.0,109260.0,0.05821]
[1761827012470,0.06292,109270.0,109260.0,0.05821]
[1761827012659,0.27041476,109270.0,109260.0,0.05821]
[1761827012866,0.06292,109270.0,109260.0,0.05821]
[1761827013060,0.27041476,109270.0,109260.0,0.05821]
[1761827013267,0.29041476,109270.0,109260.0,0.04524]
[1761827013467,0.04292,109260.0,109250.0,0.04524]
[1761827013668,0.27375476,109260.0,109250.0,0.01319531]
[1761827013971,0.06626,109260.0,109250.0,0.03530531]
[1761827014367,0.59611476,109260.0,109250.0,0.01319531]
[1761827014568,0.59711476,109260.0,109250.0,0.01419531]
[1761827014773,0.37628,109260.0,109250.0,0.05806531]
[1761827015072,0.36628,109260.0,109250.0,0.05806531]
[1761827015477,0.04392,109260.0,109250.0,0.14960691]
[1761827016067,0.04392,109260.0,109250.0,0.51040691]
[1761827016464,0.67527476,109260.0,109250.0,0.01419531]
[1761827016975,0.69527476,109260.0,109250.0,0.01419531]
[1761827017771,0.79527476,109260.0,109250.0,0.01450104]
[1761827020074,1.01803476,109260.0,109250.0,0.01450104]
[1761827020564,1.01527476,109260.0,109250.0,0.01450104]
[1761827021781,1.02527476,109260.0,109250.0,0.01450104]
[1761827023768,1.02527476,109260.0,109250.0,0.01458017]
[1761827025682,1.25527476,109260.0,109250.0,0.01458017]
[1761827026786,1.02527476,109260.0,109250.0,0.01458017]
[1761827028082,0.81778,109260.0,109250.0,0.01458017]
[1761827028283,1.02527476,109260.0,109250.0,0.01458017]
[1761827031679,1.19527476,109260.0,109250.0,0.01458017]
[1761827032384,1.19727476,109260.0,109250.0,0.01358017]
[1761827033789,0.98978,109260.0,109250.0,0.01358017]
[1761827034088,1.19727476,109260.0,109250.0,0.01358017]
[1761827035290,1.48722416,109260.0,109250.0,0.01358017]
[1761827035483,1.38727476,109260.0,109250.0,0.01358017]
[1761827035891,1.46196617,109260.0,109250.0,0.01358017]
[1761827036783,1.46472617,109260.0,109250.0,0.01358017]
[1761827036980,1.46196617,109260.0,109250.0,0.01358017]
[1761827037383,1.46472617,109260.0,109250.0,0.01358017]
[1761827037580,0.04358,109240.0,109230.0,0.03286793]
[1761827037785,0.69878476,109240.0,109230.0,0.03286793]
[1761827037984,0.69878476,109240.0,109230.0,0.07663793]
[1761827038184,1.02958476,109240.0,109230.0,0.07663793]
[1761827038785,1.02958476,109240.0,109230.0,0.08963793]
[1761827039293,1.03158476,109240.0,109230.0,0.07663793]
[1761827041189,1.03158476,109240.0,109230.0,0.05487793]
[1761827041494,1.04086667,109240.0,109230.0,0.03286793]
[1761827041795,1.04086667,109240.0,109230.0,0.07663793]
[1761827042102,1.33112143,109240.0,109230.0,0.03286793]
[1761827042283,0.05664,109210.0,109200.0,0.0001]
[1761827042488,1.04637476,109210.0,109200.0,0.0001]
[1761827042691,0.83888,109210.0,109200.0,0.04387]
[1761827042991,1.04637476,109210.0,109200.0,0.0001]
[1761827043289,0.12358,109210.0,109200.0,0.05687]
[1761827043494,0.06358,109210.0,109200.0,0.05687]
[1761827043684,0.38506,109210.0,109200.0,0.05687]
[1761827043881,0.38514,109210.0,109200.0,0.5092532]
[1761827044186,0.40789253,109240.0,109230.0,0.04377]
[1761827044390,0.05558,109240.0,109230.0,0.40457]
[1761827044590,0.65054476,109240.0,109230.0,0.04377]
[1761827044783,0.96371476,109240.0,109230.0,0.04377]
[1761827045182,0.97038476,109240.0,109230.0,0.04377]
[1761827045387,0.04595,109230.0,109220.0,0.40445]
[1761827045592,0.27344476,109230.0,109220.0,0.40445]
[1761827045791,0.04595,109220.0,109210.0,0.04365]
[1761827046087,0.29344476,109220.0,109210.0,0.04365]
[1761827046286,0.61524476,109220.0,109210.0,0.04365]
[1761827046794,0.63524476,109220.0,109210.0,0.04365]
[1761827046994,0.61524476,109220.0,109210.0,0.04365]